[Event "*** SCC Grand Prix: Titled Tuesday Blitz"]
[Site "Chess.com"]
[Date "2020.06.02"]
[Round "6"]
[White "RaunakSadhwani2005"]
[Black "Shubinkirill2003"]
[Result "1-0"]
[WhiteElo "2888"]
[BlackElo "2715"]
[TimeControl "180+1"]
[EndTime "11:10:37 PDT"]
[Termination "RaunakSadhwani2005 won on time"]

1. e4 {[%clk 0:03:00.9]} 1... e6 {[%clk 0:02:59.5]} 2. d4 {[%clk 0:03:00.3]}
2... d5 {[%clk 0:02:59.4]} 3. Nc3 {[%clk 0:03:00.8]} 3... Bb4 {[%clk 0:02:57.6]}
4. exd5 {[%clk 0:03:00.8]} 4... exd5 {[%clk 0:02:56.1]} 5. Bd3 {[%clk
0:03:01.4]} 5... c6 {[%clk 0:02:56]} 6. Ne2 {[%clk 0:02:57.2]} 6... Ne7 {[%clk
0:02:54.9]} 7. O-O {[%clk 0:02:56]} 7... Bf5 {[%clk 0:02:53.8]} 8. Bxf5 {[%clk
0:02:54.6]} 8... Nxf5 {[%clk 0:02:54.7]} 9. Qd3 {[%clk 0:02:55.1]} 9... Qd7
{[%clk 0:02:50.7]} 10. Nd1 {[%clk 0:02:48.4]} 10... O-O {[%clk 0:02:44.1]} 11.
Ne3 {[%clk 0:02:47.9]} 11... Nxe3 {[%clk 0:02:42]} 12. Bxe3 {[%clk 0:02:48.8]}
12... Na6 {[%clk 0:02:32.6]} 13. Ng3 {[%clk 0:02:48.4]} 13... Nc7 {[%clk
0:02:26.2]} 14. Nf5 {[%clk 0:02:45.1]} 14... Rfe8 {[%clk 0:02:16.7]} 15. c3
{[%clk 0:02:41.8]} 15... Bf8 {[%clk 0:02:14.9]} 16. Bd2 {[%clk 0:02:39.8]} 16...
Re6 {[%clk 0:02:03.7]} 17. Qh3 {[%clk 0:02:37.1]} 17... Rae8 {[%clk 0:01:52.9]}
18. Rae1 {[%clk 0:02:37.5]} 18... Qd8 {[%clk 0:01:41.1]} 19. Re3 {[%clk
0:02:31]} 19... Rxe3 {[%clk 0:01:29.1]} 20. Bxe3 {[%clk 0:02:31.9]} 20... Ne6
{[%clk 0:01:26.9]} 21. Qg4 {[%clk 0:02:27.1]} 21... Qf6 {[%clk 0:01:21.9]} 22.
h4 {[%clk 0:02:23.9]} 22... Qg6 {[%clk 0:01:11.9]} 23. Qf3 {[%clk 0:02:20.7]}
23... h5 {[%clk 0:01:07.1]} 24. Ng3 {[%clk 0:01:57.7]} 24... Be7 {[%clk
0:01:06.4]} 25. Nf5 {[%clk 0:01:45.2]} 25... Bf8 {[%clk 0:00:59.6]} 26. Re1
{[%clk 0:01:34.5]} 26... b5 {[%clk 0:00:46.5]} 27. a4 {[%clk 0:01:26.9]} 27...
bxa4 {[%clk 0:00:42.5]} 28. Ra1 {[%clk 0:01:22.6]} 28... Rb8 {[%clk 0:00:41.9]}
29. Bc1 {[%clk 0:00:57.2]} 29... a3 {[%clk 0:00:41.5]} 30. b4 {[%clk 0:00:56.9]}
30... a5 {[%clk 0:00:33.7]} 31. bxa5 {[%clk 0:00:55.5]} 31... Ra8 {[%clk
0:00:30.3]} 32. Bxa3 {[%clk 0:00:45.3]} 32... Rxa5 {[%clk 0:00:29.9]} 33. Bb2
{[%clk 0:00:45.9]} 33... Rxa1+ {[%clk 0:00:29.6]} 34. Bxa1 {[%clk 0:00:46.8]}
34... c5 {[%clk 0:00:17.9]} 35. Qxd5 {[%clk 0:00:42]} 35... Qg4 {[%clk
0:00:17.9]} 36. Qf3 {[%clk 0:00:35.4]} 36... cxd4 {[%clk 0:00:15.8]} 37. Qxg4
{[%clk 0:00:34.4]} 37... hxg4 {[%clk 0:00:16.7]} 38. cxd4 {[%clk 0:00:34.9]}
38... g6 {[%clk 0:00:15.6]} 39. Ne3 {[%clk 0:00:35.4]} 39... f5 {[%clk 0:00:16]}
40. h5 {[%clk 0:00:35.7]} 40... Kf7 {[%clk 0:00:14.1]} 41. d5 {[%clk 0:00:31.7]}
41... Nc7 {[%clk 0:00:13.2]} 42. Be5 {[%clk 0:00:30.7]} 42... Nb5 {[%clk
0:00:13.3]} 43. hxg6+ {[%clk 0:00:26.5]} 43... Kxg6 {[%clk 0:00:13.3]} 44. Kf1
{[%clk 0:00:27.4]} 44... Kg5 {[%clk 0:00:11.7]} 45. Ke2 {[%clk 0:00:24.5]} 45...
f4 {[%clk 0:00:11.5]} 46. Nc4 {[%clk 0:00:24.6]} 46... Kf5 {[%clk 0:00:11.5]}
47. Kd3 {[%clk 0:00:24.3]} 47... Bc5 {[%clk 0:00:08.9]} 48. f3 {[%clk
0:00:18.8]} 48... gxf3 {[%clk 0:00:09.1]} 49. gxf3 {[%clk 0:00:19.7]} 49... Na3
{[%clk 0:00:07.5]} 50. Bc3 {[%clk 0:00:17.3]} 50... Nb5 {[%clk 0:00:06.8]} 51.
Bb2 {[%clk 0:00:17.5]} 51... Nd6 {[%clk 0:00:05.8]} 52. Nxd6+ {[%clk 0:00:17]}
52... Bxd6 {[%clk 0:00:06.7]} 53. Kc4 {[%clk 0:00:17.9]} 53... Kg5 {[%clk
0:00:06.6]} 54. Kd3 {[%clk 0:00:12.8]} 54... Kf5 {[%clk 0:00:06.3]} 55. Bd4
{[%clk 0:00:13.2]} 55... Bf8 {[%clk 0:00:05.8]} 56. Kc4 {[%clk 0:00:13.4]} 56...
Kg5 {[%clk 0:00:03.2]} 57. Bf2 {[%clk 0:00:13.8]} 57... Be7 {[%clk 0:00:01.8]}
58. Kb5 {[%clk 0:00:13.9]} 58... Kf5 {[%clk 0:00:01.7]} 59. Kc6 {[%clk 0:00:14]}
59... Ke5 {[%clk 0:00:02]} 60. Bc5 {[%clk 0:00:14.1]} 60... Bg5 {[%clk
0:00:01.2]} 61. d6 {[%clk 0:00:14.1]} 61... Kf5 {[%clk 0:00:01.3]} 62. d7 {[%clk
0:00:14]} 62... Ke6 {[%clk 0:00:01.3]} 63. Bb6 {[%clk 0:00:13.8]} 63... Ke5
{[%clk 0:00:01.5]} 64. Kc7 {[%clk 0:00:09.5]} 64... Kd5 {[%clk 0:00:01.7]} 65.
Kc8 {[%clk 0:00:09.6]} 65... Kc4 {[%clk 0:00:01.3]} 66. Bd8 {[%clk 0:00:09.5]}
1-0

[Event "*** SCC Grand Prix: Titled Tuesday Blitz"]
[Site "Chess.com"]
[Date "2020.06.02"]
[Round "6"]
[White "GelmanAlexander"]
[Black "GMaka"]
[Result "0-1"]
[WhiteElo "2536"]
[BlackElo "2355"]
[TimeControl "180+1"]
[EndTime "11:10:42 PDT"]
[Termination "GMaka won on time"]

1. c4 {[%clk 0:03:00.9]} 1... e5 {[%clk 0:02:59.3]} 2. e3 {[%clk 0:03:00.3]}
2... Nc6 {[%clk 0:02:54.1]} 3. a3 {[%clk 0:02:55.7]} 3... a5 {[%clk 0:02:49]} 4.
d3 {[%clk 0:02:55.7]} 4... g6 {[%clk 0:02:48.4]} 5. Nf3 {[%clk 0:02:54.9]} 5...
Bg7 {[%clk 0:02:46.3]} 6. Nc3 {[%clk 0:02:54.1]} 6... Nge7 {[%clk 0:02:46.5]} 7.
Be2 {[%clk 0:02:54.2]} 7... O-O {[%clk 0:02:46.4]} 8. O-O {[%clk 0:02:54.5]}
8... d6 {[%clk 0:02:45.9]} 9. Bd2 {[%clk 0:02:54.3]} 9... h6 {[%clk 0:02:37.7]}
10. Rb1 {[%clk 0:02:54.1]} 10... Be6 {[%clk 0:02:36.7]} 11. b4 {[%clk
0:02:54.3]} 11... axb4 {[%clk 0:02:37.1]} 12. axb4 {[%clk 0:02:55.2]} 12... Qd7
{[%clk 0:02:37.6]} 13. b5 {[%clk 0:02:55.4]} 13... Na5 {[%clk 0:02:37.2]} 14. h3
{[%clk 0:02:28]} 14... b6 {[%clk 0:02:31.1]} 15. e4 {[%clk 0:02:12.5]} 15... g5
{[%clk 0:02:22.3]} 16. Nd5 {[%clk 0:02:10.1]} 16... Ng6 {[%clk 0:02:22.5]} 17.
Nh2 {[%clk 0:02:03.5]} 17... Nb7 {[%clk 0:02:21.1]} 18. Bg4 {[%clk 0:01:59.3]}
18... Nc5 {[%clk 0:02:21.2]} 19. Be3 {[%clk 0:01:55.5]} 19... Nf4 {[%clk
0:02:17]} 20. Bxc5 {[%clk 0:01:53.4]} 20... dxc5 {[%clk 0:02:14.9]} 21. g3
{[%clk 0:01:30]} 21... Bxg4 {[%clk 0:01:46.6]} 22. hxg4 {[%clk 0:01:25.3]} 22...
Ne6 {[%clk 0:01:43.7]} 23. Nf3 {[%clk 0:01:15.1]} 23... Ra3 {[%clk 0:01:33.3]}
24. Ra1 {[%clk 0:01:10.1]} 24... Rfa8 {[%clk 0:01:33.7]} 25. Rxa3 {[%clk
0:01:08.3]} 25... Rxa3 {[%clk 0:01:34.6]} 26. Kg2 {[%clk 0:01:04.2]} 26... Nd4
{[%clk 0:01:34]} 27. Nxd4 {[%clk 0:01:03.5]} 27... cxd4 {[%clk 0:01:34.5]} 28.
Qf3 {[%clk 0:00:58.6]} 28... Qd6 {[%clk 0:00:50.4]} 29. Rh1 {[%clk 0:00:56.3]}
29... Kf8 {[%clk 0:00:35.4]} 30. Qf5 {[%clk 0:00:50.4]} 30... Kg8 {[%clk
0:00:35.7]} 31. Rd1 {[%clk 0:00:31.8]} 31... Qd8 {[%clk 0:00:31.9]} 32. Qf3
{[%clk 0:00:25.7]} 32... Qd6 {[%clk 0:00:29.9]} 33. Rh1 {[%clk 0:00:24.9]} 33...
Qd8 {[%clk 0:00:18.7]} 34. Qe2 {[%clk 0:00:21.5]} 34... Qd6 {[%clk 0:00:18]} 35.
Rd1 {[%clk 0:00:22.1]} 35... Bf8 {[%clk 0:00:17.5]} 36. Rd2 {[%clk 0:00:20.7]}
36... Be7 {[%clk 0:00:17.1]} 37. Ra2 {[%clk 0:00:20.9]} 37... Rxa2 {[%clk
0:00:10.8]} 38. Qxa2 {[%clk 0:00:21.8]} 38... Qd8 {[%clk 0:00:06.4]} 39. Qa7
{[%clk 0:00:21.3]} 39... Bd6 {[%clk 0:00:06.6]} 40. Qb7 {[%clk 0:00:21.2]} 40...
Kg7 {[%clk 0:00:06.9]} 41. Qc6 {[%clk 0:00:20.7]} 41... Kg8 {[%clk 0:00:06.8]}
42. Qb7 {[%clk 0:00:19.4]} 42... Kg7 {[%clk 0:00:06.7]} 43. Qa7 {[%clk
0:00:19.5]} 43... Kg8 {[%clk 0:00:07.1]} 44. Qa2 {[%clk 0:00:19.5]} 44... Kg7
{[%clk 0:00:07.6]} 45. Qe2 {[%clk 0:00:19.6]} 45... Qd7 {[%clk 0:00:07.7]} 46.
Qf3 {[%clk 0:00:19.9]} 46... Qe6 {[%clk 0:00:08.3]} 47. Qd1 {[%clk 0:00:19.8]}
47... Qd7 {[%clk 0:00:08.5]} 48. Kf3 {[%clk 0:00:19.2]} 48... Qe6 {[%clk
0:00:08.7]} 49. Qa4 {[%clk 0:00:19.4]} 49... Qd7 {[%clk 0:00:08.5]} 50. Qa8
{[%clk 0:00:19.5]} 50... Bf8 {[%clk 0:00:07.8]} 51. Qb8 {[%clk 0:00:17.4]} 51...
Bd6 {[%clk 0:00:08.2]} 52. Qa8 {[%clk 0:00:17.4]} 52... Bf8 {[%clk 0:00:07.1]}
53. Qc6 {[%clk 0:00:16.5]} 53... Qxc6 {[%clk 0:00:07]} 54. bxc6 {[%clk
0:00:16.8]} 54... Bd6 {[%clk 0:00:07.9]} 55. Ke2 {[%clk 0:00:13.8]} 55... Kf8
{[%clk 0:00:07.8]} 56. Kd2 {[%clk 0:00:13.5]} 56... Ke8 {[%clk 0:00:08.3]} 57.
Kc2 {[%clk 0:00:13.7]} 57... Kd8 {[%clk 0:00:08.9]} 58. Kb3 {[%clk 0:00:13.9]}
58... Bf8 {[%clk 0:00:08.7]} 59. Ka4 {[%clk 0:00:13.7]} 59... Kc8 {[%clk
0:00:08.9]} 60. Kb5 {[%clk 0:00:13.9]} 60... Kd8 {[%clk 0:00:08.4]} 61. Ka6
{[%clk 0:00:14.2]} 61... Kc8 {[%clk 0:00:08.8]} 62. Ka7 {[%clk 0:00:14.4]} 62...
Bd6 {[%clk 0:00:07.9]} 63. Nf6 {[%clk 0:00:13.9]} 63... Bc5 {[%clk 0:00:08.1]}
64. Ng8 {[%clk 0:00:13.1]} 64... b5+ {[%clk 0:00:08.4]} 65. Ka6 {[%clk
0:00:12.5]} 65... bxc4 {[%clk 0:00:09.3]} 66. dxc4 {[%clk 0:00:03.9]} 66... d3
{[%clk 0:00:09.5]} 67. Nf6 {[%clk 0:00:02.1]} 67... d2 {[%clk 0:00:09.8]} 0-1

[Event "*** SCC Grand Prix: Titled Tuesday Blitz"]
[Site "Chess.com"]
[Date "2020.06.02"]
[Round "6"]
[White "ChainsOfFantasia"]
[Black "VitaliyBernadskiy"]
[Result "0-1"]
[WhiteElo "2484"]
[BlackElo "2676"]
[TimeControl "180+1"]
[EndTime "11:10:51 PDT"]
[Termination "VitaliyBernadskiy won on time"]

1. c4 {[%clk 0:03:00.9]} 1... e5 {[%clk 0:02:58.6]} 2. g3 {[%clk 0:02:59.2]}
2... c6 {[%clk 0:02:58.1]} 3. d4 {[%clk 0:02:58.1]} 3... exd4 {[%clk 0:02:57]}
4. Qxd4 {[%clk 0:02:57.6]} 4... Nf6 {[%clk 0:02:56.6]} 5. Nc3 {[%clk 0:02:57.6]}
5... Na6 {[%clk 0:02:56.4]} 6. Bg2 {[%clk 0:02:56.4]} 6... Bc5 {[%clk
0:02:56.1]} 7. Qe5+ {[%clk 0:02:56.1]} 7... Be7 {[%clk 0:02:56.2]} 8. Nf3 {[%clk
0:02:55.3]} 8... O-O {[%clk 0:02:56.5]} 9. O-O {[%clk 0:02:54.1]} 9... Re8
{[%clk 0:02:54.7]} 10. Rd1 {[%clk 0:02:52.3]} 10... Nc5 {[%clk 0:02:49.2]} 11.
Qf5 {[%clk 0:02:45.2]} 11... d6 {[%clk 0:02:44.4]} 12. Qc2 {[%clk 0:02:44.3]}
12... Bg4 {[%clk 0:02:41.7]} 13. b4 {[%clk 0:02:42.5]} 13... Ncd7 {[%clk
0:02:39.8]} 14. Bb2 {[%clk 0:02:41.9]} 14... Bh5 {[%clk 0:02:39]} 15. Rd2 {[%clk
0:02:27.9]} 15... Qc7 {[%clk 0:02:36.5]} 16. Rad1 {[%clk 0:02:27.3]} 16... Bf8
{[%clk 0:02:36.2]} 17. Nd4 {[%clk 0:02:20.2]} 17... Bg6 {[%clk 0:02:34.6]} 18.
Qb3 {[%clk 0:02:17.8]} 18... a5 {[%clk 0:02:33.5]} 19. a3 {[%clk 0:02:16]} 19...
Nb6 {[%clk 0:02:23.8]} 20. Nf3 {[%clk 0:01:59.6]} 20... axb4 {[%clk 0:02:21.8]}
21. axb4 {[%clk 0:01:59.2]} 21... Nbd7 {[%clk 0:02:05.8]} 22. Nh4 {[%clk
0:01:56.6]} 22... Qb6 {[%clk 0:02:01.8]} 23. Nxg6 {[%clk 0:01:55]} 23... hxg6
{[%clk 0:02:02.7]} 24. b5 {[%clk 0:01:35]} 24... Ne5 {[%clk 0:01:57.6]} 25. Ne4
{[%clk 0:01:18.7]} 25... Nxe4 {[%clk 0:01:56]} 26. Bxe4 {[%clk 0:01:19.6]} 26...
Qc5 {[%clk 0:01:39.8]} 27. bxc6 {[%clk 0:01:10.5]} 27... bxc6 {[%clk 0:01:39.4]}
28. Bd4 {[%clk 0:00:49.7]} 28... Qxc4 {[%clk 0:01:39]} 29. Qxc4 {[%clk
0:00:49.6]} 29... Nxc4 {[%clk 0:01:39.9]} 30. Bxc6 {[%clk 0:00:50.1]} 30... Nxd2
{[%clk 0:01:40.3]} 31. Bxa8 {[%clk 0:00:50.2]} 31... Rxe2 {[%clk 0:01:37.4]} 32.
Be3 {[%clk 0:00:41.7]} 32... Nc4 {[%clk 0:01:37.2]} 33. Bf3 {[%clk 0:00:39]}
33... Ra2 {[%clk 0:01:32.6]} 34. Bf4 {[%clk 0:00:35.8]} 34... Ra5 {[%clk
0:01:20.8]} 35. Bd5 {[%clk 0:00:33.7]} 35... Nb6 {[%clk 0:01:19.9]} 36. Bf3
{[%clk 0:00:32]} 36... Nc8 {[%clk 0:01:14.8]} 37. Bb7 {[%clk 0:00:30.7]} 37...
Rc5 {[%clk 0:01:09.3]} 38. Rd2 {[%clk 0:00:27.3]} 38... g5 {[%clk 0:01:04.5]}
39. Be3 {[%clk 0:00:21.4]} 39... Rc1+ {[%clk 0:01:04.2]} 40. Kg2 {[%clk
0:00:21.3]} 40... f6 {[%clk 0:01:02]} 41. Bd4 {[%clk 0:00:15.6]} 41... Ne7
{[%clk 0:00:56.2]} 42. Bb2 {[%clk 0:00:13.6]} 42... Rc7 {[%clk 0:00:55.9]} 43.
Be4 {[%clk 0:00:12]} 43... Rd7 {[%clk 0:00:54.6]} 44. Ba3 {[%clk 0:00:11.9]}
44... Nc8 {[%clk 0:00:52.2]} 45. Bd5+ {[%clk 0:00:11.7]} 45... Kh7 {[%clk
0:00:51]} 46. h4 {[%clk 0:00:11.3]} 46... gxh4 {[%clk 0:00:50.5]} 47. Be6 {[%clk
0:00:11.3]} 47... Rd8 {[%clk 0:00:49.7]} 48. Rd4 {[%clk 0:00:11.5]} 48... hxg3
{[%clk 0:00:47.4]} 49. Bf7 {[%clk 0:00:11.7]} 49... g6 {[%clk 0:00:46]} 50. Bb2
{[%clk 0:00:09.2]} 50... Kg7 {[%clk 0:00:42.8]} 51. Be6 {[%clk 0:00:09.3]} 51...
gxf2 {[%clk 0:00:41.5]} 52. Rf4 {[%clk 0:00:09.4]} 52... Be7 {[%clk 0:00:41]}
53. Kxf2 {[%clk 0:00:09.6]} 53... Nb6 {[%clk 0:00:38.8]} 54. Rb4 {[%clk
0:00:08.8]} 54... Rb8 {[%clk 0:00:35.6]} 55. Bd4 {[%clk 0:00:05.7]} 55... Nd7
{[%clk 0:00:35.6]} 56. Ra4 {[%clk 0:00:05.9]} 56... Nc5 {[%clk 0:00:34.2]} 57.
Bxc5 {[%clk 0:00:03.3]} 57... dxc5 {[%clk 0:00:35.1]} 58. Ra7 {[%clk 0:00:03.8]}
58... f5 {[%clk 0:00:33.7]} 59. Ke3 {[%clk 0:00:01.8]} 59... Kf6 {[%clk
0:00:33.4]} 60. Bc4 {[%clk 0:00:02.7]} 60... Rb6 {[%clk 0:00:28.9]} 61. Kd3
{[%clk 0:00:03.6]} 61... g5 {[%clk 0:00:29.1]} 62. Ra8 {[%clk 0:00:04.3]} 62...
f4 {[%clk 0:00:28.9]} 63. Rg8 {[%clk 0:00:05.2]} 63... Rd6+ {[%clk 0:00:28.4]}
64. Ke2 {[%clk 0:00:04.9]} 64... Rd4 {[%clk 0:00:26.6]} 65. Ba6 {[%clk
0:00:04.5]} 65... c4 {[%clk 0:00:26]} 66. Kf3 {[%clk 0:00:04.9]} 66... c3 {[%clk
0:00:25.3]} 67. Rc8 {[%clk 0:00:05.4]} 67... Bb4 {[%clk 0:00:24.3]} 68. Kg4
{[%clk 0:00:05.4]} 68... Rd6 {[%clk 0:00:22.4]} 69. Bc4 {[%clk 0:00:04.6]} 69...
Ke5 {[%clk 0:00:18.1]} 70. Kxg5 {[%clk 0:00:03.4]} 70... Kd4 {[%clk 0:00:15.6]}
71. Bb3 {[%clk 0:00:03.4]} 71... Ke3 {[%clk 0:00:14.3]} 72. Re8+ {[%clk
0:00:02.5]} 72... Kf3 {[%clk 0:00:13.9]} 73. Rf8 {[%clk 0:00:02.4]} 73... Rd4
{[%clk 0:00:11.8]} 74. Rf5 {[%clk 0:00:01.2]} 74... Kg3 {[%clk 0:00:11.4]} 0-1

[Event "*** SCC Grand Prix: Titled Tuesday Blitz"]
[Site "Chess.com"]
[Date "2020.06.02"]
[Round "6"]
[White "DvaHrasta"]
[Black "ftorodent"]
[Result "1-0"]
[WhiteElo "2494"]
[BlackElo "2649"]
[TimeControl "180+1"]
[EndTime "11:10:51 PDT"]
[Termination "DvaHrasta won on time"]

1. c4 {[%clk 0:03:00.9]} 1... e5 {[%clk 0:02:58.7]} 2. g3 {[%clk 0:03:00.6]}
2... Nf6 {[%clk 0:02:57.5]} 3. Bg2 {[%clk 0:02:59.9]} 3... Nc6 {[%clk
0:02:56.2]} 4. Nf3 {[%clk 0:02:59.7]} 4... Bc5 {[%clk 0:02:49]} 5. O-O {[%clk
0:02:59.1]} 5... O-O {[%clk 0:02:48.5]} 6. Nxe5 {[%clk 0:02:58.9]} 6... Bxf2+
{[%clk 0:02:34.4]} 7. Rxf2 {[%clk 0:02:57.4]} 7... Nxe5 {[%clk 0:02:35]} 8. d4
{[%clk 0:02:57.3]} 8... Nxc4 {[%clk 0:02:27.9]} 9. Bg5 {[%clk 0:02:54.6]} 9...
Qe7 {[%clk 0:01:54.5]} 10. e4 {[%clk 0:02:44.9]} 10... d6 {[%clk 0:01:54.1]} 11.
Nc3 {[%clk 0:02:43.1]} 11... Nb6 {[%clk 0:01:36.4]} 12. Qf1 {[%clk 0:02:34.7]}
12... Re8 {[%clk 0:01:21.3]} 13. Rxf6 {[%clk 0:02:21.1]} 13... gxf6 {[%clk
0:01:20.2]} 14. Bxf6 {[%clk 0:02:21.1]} 14... Qe6 {[%clk 0:01:13.4]} 15. h3
{[%clk 0:02:09.9]} 15... Nd7 {[%clk 0:00:59.3]} 16. Nd5 {[%clk 0:02:05.9]} 16...
Nxf6 {[%clk 0:00:52.8]} 17. Nxf6+ {[%clk 0:02:05.4]} 17... Kg7 {[%clk
0:00:53.1]} 18. Nxe8+ {[%clk 0:02:03.8]} 18... Qxe8 {[%clk 0:00:53.1]} 19. Qf4
{[%clk 0:02:02.9]} 19... f6 {[%clk 0:00:41.5]} 20. Rc1 {[%clk 0:01:58.3]} 20...
Qe7 {[%clk 0:00:40.8]} 21. Re1 {[%clk 0:01:48.3]} 21... Bd7 {[%clk 0:00:31.3]}
22. e5 {[%clk 0:01:48.3]} 22... fxe5 {[%clk 0:00:31.3]} 23. dxe5 {[%clk
0:01:48.4]} 23... Re8 {[%clk 0:00:31.7]} 24. Bxb7 {[%clk 0:01:38.3]} 24... dxe5
{[%clk 0:00:31.7]} 25. Qe3 {[%clk 0:01:30]} 25... Bxh3 {[%clk 0:00:31.6]} 26.
Bf3 {[%clk 0:01:22.4]} 26... Bf5 {[%clk 0:00:28.7]} 27. Qxa7 {[%clk 0:01:17.2]}
27... Qd6 {[%clk 0:00:28]} 28. Qe3 {[%clk 0:01:14.2]} 28... e4 {[%clk
0:00:22.3]} 29. Qg5+ {[%clk 0:01:07.3]} 29... Qg6 {[%clk 0:00:21.9]} 30. Qxg6+
{[%clk 0:01:05.9]} 30... hxg6 {[%clk 0:00:22]} 31. g4 {[%clk 0:01:02.4]} 31...
Rd8 {[%clk 0:00:17.7]} 32. Bxe4 {[%clk 0:00:44.8]} 32... Bxg4 {[%clk 0:00:16.5]}
33. a4 {[%clk 0:00:44.3]} 33... Rd2 {[%clk 0:00:15.8]} 34. a5 {[%clk 0:00:38.1]}
34... Rxb2 {[%clk 0:00:15.5]} 35. Ra1 {[%clk 0:00:38]} 35... Be2 {[%clk
0:00:11.5]} 36. a6 {[%clk 0:00:34.6]} 36... Bxa6 {[%clk 0:00:11.5]} 37. Rxa6
{[%clk 0:00:34.4]} 37... Rb6 {[%clk 0:00:12.2]} 38. Ra7 {[%clk 0:00:33.9]} 38...
Kh6 {[%clk 0:00:12.8]} 39. Rxc7 {[%clk 0:00:33.3]} 39... Re6 {[%clk 0:00:13.4]}
40. Bf3 {[%clk 0:00:31.6]} 40... Kg5 {[%clk 0:00:13.4]} 41. Kf2 {[%clk
0:00:31.8]} 41... Kf4 {[%clk 0:00:13.8]} 42. Rc4+ {[%clk 0:00:30.4]} 42... Kg5
{[%clk 0:00:13.8]} 43. Kg3 {[%clk 0:00:29.9]} 43... Re5 {[%clk 0:00:14.1]} 44.
Rc6 {[%clk 0:00:28.5]} 44... Ra5 {[%clk 0:00:13.5]} 45. Be4 {[%clk 0:00:27.2]}
45... Ra3+ {[%clk 0:00:13.1]} 46. Kf2 {[%clk 0:00:26]} 46... Kf4 {[%clk
0:00:13.5]} 47. Bxg6 {[%clk 0:00:25.2]} 47... Rf3+ {[%clk 0:00:13.4]} 48. Ke2
{[%clk 0:00:24]} 48... Re3+ {[%clk 0:00:14]} 49. Kd2 {[%clk 0:00:24.1]} 49...
Re5 {[%clk 0:00:14.6]} 50. Bd3 {[%clk 0:00:23.7]} 50... Kf3 {[%clk 0:00:14.3]}
51. Rf6+ {[%clk 0:00:23.1]} 51... Kg3 {[%clk 0:00:14.4]} 52. Kc3 {[%clk
0:00:22.5]} 52... Re8 {[%clk 0:00:13.3]} 53. Kd4 {[%clk 0:00:21.3]} 53... Rg8
{[%clk 0:00:13.9]} 54. Be4 {[%clk 0:00:20.8]} 54... Rg5 {[%clk 0:00:14.4]} 55.
Ke3 {[%clk 0:00:20.6]} 55... Rg8 {[%clk 0:00:14]} 56. Rf1 {[%clk 0:00:20.1]}
56... Rg5 {[%clk 0:00:12.9]} 57. Bf3 {[%clk 0:00:17.9]} 57... Kh4 {[%clk
0:00:09.4]} 58. Kf4 {[%clk 0:00:16.6]} 58... Rg4+ {[%clk 0:00:09.7]} 59. Kf5
{[%clk 0:00:16.2]} 59... Rg5+ {[%clk 0:00:09.7]} 60. Kf4 {[%clk 0:00:14.5]}
60... Rg4+ {[%clk 0:00:09.6]} 61. Ke3 {[%clk 0:00:14.7]} 61... Rg5 {[%clk
0:00:09.1]} 62. Kf2 {[%clk 0:00:12.9]} 62... Ra5 {[%clk 0:00:07.6]} 63. Rh1+
{[%clk 0:00:12.4]} 63... Kg5 {[%clk 0:00:06.8]} 64. Rh5+ {[%clk 0:00:12.7]}
64... Kf4 {[%clk 0:00:07.2]} 65. Rh4+ {[%clk 0:00:13]} 65... Kg5 {[%clk
0:00:06.7]} 66. Rg4+ {[%clk 0:00:13]} 66... Kf5 {[%clk 0:00:06.5]} 67. Kg3
{[%clk 0:00:13]} 67... Kf6 {[%clk 0:00:05.4]} 68. Rb4 {[%clk 0:00:11.1]} 68...
Rg5+ {[%clk 0:00:03.4]} 69. Bg4 {[%clk 0:00:11.2]} 69... Rc5 {[%clk 0:00:02.7]}
70. Kf4 {[%clk 0:00:10.7]} 70... Rc7 {[%clk 0:00:02.1]} 71. Rb6+ {[%clk
0:00:10.2]} 71... Ke7 {[%clk 0:00:02.4]} 72. Bf3 {[%clk 0:00:08.9]} 72... Rd7
{[%clk 0:00:01.1]} 73. Ke5 {[%clk 0:00:08.4]} 73... Rc7 {[%clk 0:00:01.4]} 74.
Bd5 {[%clk 0:00:08.4]} 1-0